[Event "9th HDBank Open 2019"]
[Site "Ho Chi Minh City"]
[Date "2019.03.07"]
[Round "1.13"]
[White "Bogdanovich, Stanislav"]
[Black "Andyka, Pitra"]
[Result "1-0"]
[ECO "A00"]
[WhiteElo "2536"]
[BlackElo "2283"]
[Annotator "ChessBase"]
[PlyCount "59"]
[EventDate "2019.03.07"]
[EventType "swiss"]
[EventCountry "VIE"]
[SourceTitle "playchess.com"]
[Source "ChessBase"]
[SourceQuality "1"]
[TimeControl "5400+30"]

1. g3 {[%emt 0:00:00]} d5 {[%emt 0:00:00]} 2. Bg2 {[%emt 0:00:00]} c6 3. f4 {[%emt 0:03:39]} g6 {[%emt 0:01:18]} 4. Nf3 {[%emt 0:04:59]} Bg7 {[%emt 0:00:07]} 5. Nc3 {[%emt 0:03:29]} Nf6 {[%emt 0:02:24]} 6. d3 {[%emt 0:00:41]} O-O {[%emt 0:01:48]} 7. O-O {[%emt 0:01:09]} d4 {[%emt 0:08:30]} 8. Ne4 {[%emt 0:00:34]} Nxe4 {[%emt 0:03:34]} 9. dxe4 {[%emt 0:00:05]} c5 {[%emt 0:00:22]} 10. e5 {[%emt 0:03:58]} Nc6 {[%emt 0:00:11]} 11. e3 {[%emt 0:12:28]} Be6 {[%emt 0:05:54]} 12. Qe2 {[%emt 0:00:30]} h6 {[%emt 0:12:03]} 13. Rd1 {[%emt 0:03:06]} Qb6 {[%emt 0:01:46]} 14. b3 {[%emt 0:02:28]} Rfd8 {[%emt 0:01:07]} 15. Qf2 {[%emt 0:10:23]} Rd7 {[%emt 0:11:28]} 16. exd4 {[%emt 0:02:52]} cxd4 {[%emt 0:00:16]} 17. Bb2 {[%emt 0:00:44]} Rad8 {[%emt 0:00:11]} 18. Rd2 {[%emt 0:01:39]} f6 {[%emt 0:10:50]} 19. exf6 {[%emt 0:04:44]} Bxf6 {[%emt 0:04:47]} 20. Re1 {[%emt 0:03:47]} Bf7 {[%emt 0:09:36]} 21. Bh3 {[%emt 0:03:00]} Rd5 {[%emt 0:01:51]} 22. Bf1 {[%emt 0:07:50]} e5 {[%emt 0:04:55]} 23. Bc4 {[%emt 0:03:48]} exf4 {[%emt 0:01:21]} 24. Bxd5 {[%emt 0:00:37]} Bxd5 {[%emt 0:01:58]} 25. Nxd4 {[%emt 0:03:54]} Ne5 {[%emt 0:03:06]} 26. c4 {[%emt 0:08:12]} Bf7 {[%emt 0:12:04]} 27. Qxf4 {[%emt 0:01:48]} Bg5 {[%emt 0:00:49]} 28. Qxe5 {[%emt 0:00:12]} Bxd2 {[%emt 0:00:48]} 29. c5 {[%emt 0:00:19]} Re8 {[%emt 0:00:53]} 30. Ne6 {[%emt 0:02:52]} 1-0

[Event "9th HDBank Open 2019"]
[Site "Ho Chi Minh City"]
[Date "2019.03.07"]
[Round "1.14"]
[White "Kathmale, Sameer"]
[Black "Chanda, Sandipan"]
[Result "0-1"]
[ECO "B53"]
[WhiteElo "2282"]
[BlackElo "2534"]
[Annotator "RC"]
[PlyCount "120"]
[EventDate "2019.03.07"]
[EventType "swiss"]
[EventCountry "VIE"]
[SourceTitle "playchess.com"]
[Source "ChessBase"]
[SourceQuality "1"]
[TimeControl "5400+30"]

1. e4 {[%emt 0:00:00]} c5 {[%emt 0:00:00]} 2. Nf3 {[%emt 0:00:00]} d6 {[%emt 0:00:00]} 3. d4 {[%emt 0:00:16]} cxd4 {[%emt 0:00:01]} 4. Qxd4 {[%emt 0:00:20]} Nf6 {[%emt 0:00:25]} 5. Bb5+ {[%emt 0:00:36]} Bd7 {[%emt 0:02:48]} 6. Bxd7+ {[%emt 0:00:14]} Nfxd7 {[%emt 0:04:12]} 7. c4 {[%emt 0:01:22]} Nc6 {[%emt 0:00:42]} 8. Qe3 {[%emt 0:08:32]} g6 {[%emt 0:04:20]} 9. Nc3 {[%emt 0:01:55]} Bg7 {[%emt 0:00:33]} 10. O-O {[%emt 0:00:46]} O-O {[%emt 0:00:32]} 11. Rb1 {[%emt 0:08:15]} Qb6 {[%emt 0:03:16]} 12. Nd5 {[%emt 0:03:17]} Qa6 {[%emt 0:11:15]} 13. b3 {[%emt 0:24:44]} Qxa2 {[%emt 0:04:04]} 14. Bd2 {[%emt 0:00:18]} Qa3 {[%emt 0:05:21]} 15. Qg5 {[%emt 0:10:39]} e6 {[%emt 0:13:19]} 16. Nc7 {[%emt 0:03:30]} Rad8 {[%emt 0:01:16]} 17. Nb5 {[%emt 0:02:10]} Qc5 {[%emt 0:01:18]} 18. Be3 {[%emt 0:13:15]} Qxg5 {[%emt 0:00:16]} 19. Bxg5 {[%emt 0:00:11]} Nf6 {[%emt 0:01:37]} 20. Rfe1 {[%emt 0:10:19]} a6 {[%emt 0:03:42]} 21. Nxd6 {[%emt 0:00:18]} Rxd6 {[%emt 0:00:10]} 22. e5 {[%emt 0:01:18]} Nxe5 {[%emt 0:00:08]} 23. Nxe5 {[%emt 0:00:06]} h6 {[%emt 0:03:17]} 24. Bc1 {[%emt 0:01:34]} Re8 {[%emt 0:05:28]} 25. Ba3 {[%emt 0:01:02]} Rdd8 {[%emt 0:00:07]} 26. g3 {[%emt 0:01:25]} Nd7 {[%emt 0:05:48]} 27. Bd6 {[%emt 0:00:56]} Nxe5 {[%emt 0:01:42]} 28. Bxe5 {[%emt 0:00:05]} Rd2 {[%emt 0:00:57]} 29. Bxg7 {[%emt 0:02:28]} Kxg7 {[%emt 0:03:13]} 30. c5 {[%emt 0:00:34]} Red8 {[%emt 0:00:57]} 31. b4 {[%emt 0:00:44]} Rc2 {[%emt 0:04:33]} 32. Red1 {[%emt 0:02:59]} Rxd1+ {[%emt 0:00:18]} 33. Rxd1 {[%emt 0:00:02]} Rc4 {[%emt 0:00:21]} 34. Rb1 {[%emt 0:00:08]} Kf6 {[%emt 0:00:10]} 35. f4 {[%emt 0:01:04]} Kf5 {[%emt 0:00:49]} 36. Kg2 {[%emt 0:00:39]} Ke4 {[%emt 0:01:32]} 37. b5 {[%emt 0:01:23]} Rxc5 {[%emt 0:01:19]} 38. bxa6 {[%emt 0:00:10]} bxa6 {[%emt 0:00:04]} 39. Rb7 {[%emt 0:00:06]} Rf5 {[%emt 0:00:30]} 40. Rd7 {[%emt 0:00:39]} a5 {[%emt 0:01:06]} 41. h3 {[%emt 0:00:28]} h5 {[%emt 0:00:34]} 42. h4 {[%emt 0:00:50]} e5 {[%emt 0:03:46]} 43. Re7 {[%emt 0:00:42]} f6 {[%emt 0:02:04]} 44. Re6 {[%emt 0:00:21]} Kd5 {[%emt 0:03:41]} 45. Ra6 {[%emt 0:00:11]} exf4 {[%emt 0:00:20]} 46. Rxa5+ {[%emt 0:00:07]} Kc4 {[%emt 0:01:05]} 47. Ra4+ {[%emt 0:01:11]} Kb5 {[%emt 0:00:34]} 48. Re4 {[%emt 0:01:14]} fxg3 {[%emt 0:02:07]} 49. Kxg3 {[%emt 0:00:17]} Re5 {[%emt 0:03:54]} 50. Rd4 {[%emt 0:00:16]} Kc6 {[%emt 0:00:25]} 51. Rd8 {[%emt 0:00:14]} Re3+ {[%emt 0:01:51]} 52. Kf2 {[%emt 0:00:33]} Re4 {[%emt 0:00:43]} 53. Rf8 {[%emt 0:00:29]} Rf4+ {[%emt 0:00:08]} 54. Ke3 {[%emt 0:00:38]} Rf5 {[%emt 0:00:28]} 55. Ke4 {[%emt 0:00:56]} Rf1 {[%emt 0:00:11]} 56. Rg8 {[%emt 0:00:29]} Rg1 {[%emt 0:00:22]} 57. Rf8 {[%emt 0:00:33]} Rg4+ {[%emt 0:00:41]} 58. Kf3 {[%emt 0:00:12]} f5 {[%emt 0:00:08]} 59. Ra8 {[%emt 0:00:45]} Kd7 {[%emt 0:00:21]} 60. Ra7+ {[%emt 0:00:12]} Ke6 {[%emt 0:00:10]} 0-1

[Event "9th HDBank Open 2019"]
[Site "Ho Chi Minh City"]
[Date "2019.03.07"]
[Round "1.15"]
[White "Gukesh D"]
[Black "Bao, Khoa"]
[Result "1-0"]
[ECO "A05"]
[WhiteElo "2529"]
[BlackElo "2277"]
[Annotator "ChessBase"]
[PlyCount "95"]
[EventDate "2019.03.07"]
[EventType "swiss"]
[EventCountry "VIE"]
[SourceTitle "playchess.com"]
[Source "ChessBase"]
[SourceQuality "1"]
[TimeControl "5400+30"]

1. Nf3 {[%emt 0:00:00]} Nf6 {[%emt 0:00:00]} 2. g3 {[%emt 0:00:00]} g6 {[%emt 0:00:12]} 3. Bg2 {[%emt 0:01:00]} Bg7 {[%emt 0:00:12]} 4. O-O {[%emt 0:00:30]} O-O {[%emt 0:00:05]} 5. d4 {[%emt 0:00:05]} d6 {[%emt 0:01:06]} 6. c4 {[%emt 0:00:26]} c6 {[%emt 0:01:12]} 7. Nc3 {[%emt 0:00:30]} Nbd7 {[%emt 0:02:29]} 8. e4 {[%emt 0:10:58]} e5 {[%emt 0:04:06]} 9. b3 {[%emt 0:06:11]} Re8 {[%emt 0:06:45]} 10. Bb2 {[%emt 0:02:30]} exd4 {[%emt 0:03:20]} 11. Nxd4 {[%emt 0:00:08]} Nc5 {[%emt 0:00:19]} 12. Qc2 {[%emt 0:03:10]} Qb6 {[%emt 0:07:42]} 13. Rad1 {[%emt 0:03:47]} Bg4 {[%emt 0:02:21]} 14. f3 {[%emt 0:01:48]} Bd7 {[%emt 0:00:29]} 15. Kh1 {[%emt 0:00:59]} Rad8 {[%emt 0:00:18]} 16. Rfe1 {[%emt 0:10:46]} a5 {[%emt 0:05:48]} 17. Bc1 {[%emt 0:02:39]} Bc8 {[%emt 0:01:44]} 18. Be3 {[%emt 0:01:48]} Qc7 {[%emt 0:06:55]} 19. Bf2 {[%emt 0:10:50]} Bd7 {[%emt 0:06:02]} 20. Nde2 {[%emt 0:01:07]} b6 {[%emt 0:06:21]} 21. Rd2 {[%emt 0:07:24]} Bh6 {[%emt 0:13:58]} 22. Rdd1 {[%emt 0:01:36]} Qb8 {[%emt 0:06:30]} 23. a3 {[%emt 0:02:47]} b5 {[%emt 0:02:14]} 24. cxb5 {[%emt 0:01:03]} cxb5 {[%emt 0:00:17]} 25. Nf4 {[%emt 0:03:43]} Rc8 {[%emt 0:04:11]} 26. Qb2 {[%emt 0:02:48]} Bg7 {[%emt 0:03:14]} 27. Bd4 {[%emt 0:00:14]} Ne6 {[%emt 0:00:53]} 28. Nxe6 {[%emt 0:00:32]} Bxe6 {[%emt 0:03:00]} 29. Ne2 {[%emt 0:00:22]} Nh5 {[%emt 0:00:25]} 30. Bxg7 {[%emt 0:03:51]} Nxg7 {[%emt 0:00:07]} 31. b4 {[%emt 0:01:23]} axb4 {[%emt 0:04:47]} 32. axb4 {[%emt 0:00:17]} Rc4 {[%emt 0:04:39]} 33. Nd4 {[%emt 0:00:33]} d5 {[%emt 0:01:55]} 34. Bf1 {[%emt 0:02:26]} dxe4 {[%emt 0:01:17]} 35. Nxe6 {[%emt 0:00:51]} Nxe6 {[%emt 0:00:12]} 36. Bxc4 {[%emt 0:00:05]} bxc4 {[%emt 0:00:05]} 37. Rxe4 {[%emt 0:00:10]} Qb5 {[%emt 0:00:22]} 38. Qc3 {[%emt 0:01:05]} Rc8 {[%emt 0:00:14]} 39. Re5 {[%emt 0:01:42]} Qb7 {[%emt 0:00:47]} 40. Red5 {[%emt 0:01:22]} h5 {[%emt 0:00:34]} 41. b5 {[%emt 0:02:18]} Qb6 {[%emt 0:00:20]} 42. Kg2 {[%emt 0:03:13]} h4 {[%emt 0:02:05]} 43. Re1 {[%emt 0:01:31]} Qb7 {[%emt 0:01:09]} 44. Rde5 {[%emt 0:00:28]} Qb6 {[%emt 0:00:36]} 45. R1e4 {[%emt 0:01:57]} h3+ {[%emt 0:00:28]} 46. Kxh3 {[%emt 0:00:26]} Rc5 {[%emt 0:00:29]} 47. Rh4 {[%emt 0:02:20]} Kf8 {[%emt 0:00:39]} 48. Qb4 {[%emt 0:00:50]} 1-0

[Event "9th HDBank Open 2019"]
[Site "Ho Chi Minh City"]
[Date "2019.03.07"]
[Round "1.17"]
[White "Le, Huu Thai"]
[Black "Xu, Yi"]
[Result "0-1"]
[ECO "D37"]
[WhiteElo "2265"]
[BlackElo "2520"]
[Annotator "ChessBase"]
[PlyCount "82"]
[EventDate "2019.03.07"]
[EventType "swiss"]
[EventCountry "VIE"]
[SourceTitle "playchess.com"]
[Source "ChessBase"]
[SourceQuality "1"]
[TimeControl "5400+30"]

1. d4 {[%emt 0:00:00]} Nf6 {[%emt 0:00:00]} 2. Nf3 {[%emt 0:00:04]} d5 {[%emt 0:00:17]} 3. c4 {[%emt 0:00:36]} e6 {[%emt 0:00:05]} 4. Nc3 {[%emt 0:00:16]} a6 {[%emt 0:00:09]} 5. cxd5 {[%emt 0:01:08]} exd5 {[%emt 0:00:06]} 6. Qc2 {[%emt 0:00:02]} Bd6 {[%emt 0:01:51]} 7. Bg5 {[%emt 0:00:23]} Be6 {[%emt 0:00:13]} 8. e3 {[%emt 0:00:37]} h6 {[%emt 0:00:25]} 9. Bh4 {[%emt 0:00:09]} Nbd7 {[%emt 0:00:13]} 10. Bd3 {[%emt 0:01:17]} c6 {[%emt 0:00:11]} 11. O-O {[%emt 0:01:06]} Qc7 {[%emt 0:00:32]} 12. Bg3 {[%emt 0:02:32]} Bxg3 {[%emt 0:00:14]} 13. hxg3 {[%emt 0:00:03]} O-O {[%emt 0:01:01]} 14. Rfc1 {[%emt 0:01:38]} Rfe8 {[%emt 0:05:20]} 15. Na4 {[%emt 0:04:03]} Ne4 {[%emt 0:01:19]} 16. Nc3 {[%emt 0:10:27]} Nd6 {[%emt 0:03:49]} 17. Na4 {[%emt 0:02:58]} Ne4 {[%emt 0:06:13]} 18. Nc3 {[%emt 0:02:41]} Nd6 {[%emt 0:06:41]} 19. Na4 {[%emt 0:05:28]} Nf6 {[%emt 0:01:54]} 20. Nc5 {[%emt 0:00:29]} g6 {[%emt 0:01:00]} 21. b4 {[%emt 0:03:17]} Bf5 {[%emt 0:00:46]} 22. Ne5 {[%emt 0:04:14]} Bxd3 {[%emt 0:03:01]} 23. Qxd3 {[%emt 0:00:48]} h5 {[%emt 0:00:28]} 24. a4 {[%emt 0:01:39]} Kg7 {[%emt 0:00:50]} 25. Rab1 {[%emt 0:01:53]} Qe7 {[%emt 0:00:14]} 26. Kf1 {[%emt 0:09:39]} Nfe4 {[%emt 0:03:49]} 27. Nxe4 {[%emt 0:03:11]} Nxe4 {[%emt 0:00:36]} 28. Nf3 {[%emt 0:04:38]} Nd6 {[%emt 0:02:26]} 29. Kg1 {[%emt 0:02:01]} f6 {[%emt 0:02:56]} 30. Nd2 {[%emt 0:09:23]} Rh8 {[%emt 0:01:14]} 31. Re1 {[%emt 0:07:53]} Rae8 {[%emt 0:00:24]} 32. Nf3 {[%emt 0:01:46]} Qd7 {[%emt 0:00:50]} 33. Rb2 {[%emt 0:01:17]} g5 {[%emt 0:02:01]} 34. Rbe2 {[%emt 0:01:15]} h4 {[%emt 0:06:56]} 35. gxh4 {[%emt 0:00:21]} g4 {[%emt 0:02:43]} 36. Nd2 {[%emt 0:00:30]} Rxh4 {[%emt 0:00:12]} 37. e4 {[%emt 0:02:19]} Reh8 {[%emt 0:00:46]} 38. f4 {[%emt 0:01:54]} dxe4 {[%emt 0:00:07]} 39. Nxe4 {[%emt 0:00:27]} Qf5 {[%emt 0:00:43]} 40. Qe3 {[%emt 0:03:33]} Nxe4 {[%emt 0:01:02]} 41. Qxe4 {[%emt 0:03:02]} g3 {[%emt 0:00:49]} 0-1

[Event "9th HDBank Open 2019"]
[Site "Ho Chi Minh City"]
[Date "2019.03.07"]
[Round "1.18"]
[White "Nasanjargal, Urtnasan"]
[Black "Luong, Phuong Hanh"]
[Result "1-0"]
[ECO "A16"]
[WhiteElo "2503"]
[BlackElo "2259"]
[Annotator "ChessBase"]
[PlyCount "75"]
[EventDate "2019.03.07"]
[EventType "swiss"]
[EventCountry "VIE"]
[SourceTitle "playchess.com"]
[Source "ChessBase"]
[SourceQuality "1"]
[TimeControl "5400+30"]

1. c4 {[%emt 0:00:00]} Nf6 {[%emt 0:00:00]} 2. Nc3 {[%emt 0:00:06]} d5 {[%emt 0:00:54]} 3. cxd5 {[%emt 0:00:09]} Nxd5 {[%emt 0:00:09]} 4. g3 {[%emt 0:00:46]} g6 {[%emt 0:00:13]} 5. Bg2 {[%emt 0:00:11]} Nb6 {[%emt 0:00:31]} 6. d3 {[%emt 0:00:15]} Bg7 {[%emt 0:00:49]} 7. Be3 {[%emt 0:00:19]} O-O {[%emt 0:00:58]} 8. h4 {[%emt 0:00:36]} Nc6 {[%emt 0:03:23]} 9. Bxc6 {[%emt 0:03:28]} bxc6 {[%emt 0:00:19]} 10. Qd2 {[%emt 0:00:19]} h5 {[%emt 0:03:48]} 11. Rc1 {[%emt 0:01:43]} Nd5 {[%emt 0:04:04]} 12. Bh6 {[%emt 0:01:13]} Bg4 {[%emt 0:04:05]} 13. Ne4 {[%emt 0:07:02]} Nf6 {[%emt 0:04:15]} 14. Bxg7 {[%emt 0:04:38]} Kxg7 {[%emt 0:00:04]} 15. f3 {[%emt 0:01:12]} Nxe4 {[%emt 0:01:58]} 16. dxe4 {[%emt 0:01:12]} Qxd2+ {[%emt 0:00:22]} 17. Kxd2 {[%emt 0:00:15]} Rfd8+ {[%emt 0:00:59]} 18. Ke3 {[%emt 0:00:32]} Be6 {[%emt 0:00:39]} 19. Nh3 {[%emt 0:04:25]} Bxa2 {[%emt 0:05:17]} 20. Rxc6 {[%emt 0:01:55]} Rab8 {[%emt 0:02:54]} 21. Rxc7 {[%emt 0:02:18]} Rb3+ {[%emt 0:01:12]} 22. Kf2 {[%emt 0:09:50]} Rxb2 {[%emt 0:08:58]} 23. Rxe7 {[%emt 0:00:58]} Bc4 {[%emt 0:03:30]} 24. Nf4 {[%emt 0:00:20]} Rdd2 {[%emt 0:00:25]} 25. Re1 {[%emt 0:00:08]} a5 {[%emt 0:03:30]} 26. Ra7 {[%emt 0:01:21]} Ra2 {[%emt 0:02:37]} 27. e5 {[%emt 0:04:20]} Kh6 {[%emt 0:02:49]} 28. Rc7 {[%emt 0:01:50]} Rdc2 {[%emt 0:05:40]} 29. Rb1 {[%emt 0:07:32]} a4 {[%emt 0:15:51]} 30. g4 {[%emt 0:06:43]} hxg4 {[%emt 0:05:11]} 31. fxg4 {[%emt 0:00:12]} g5 {[%emt 0:12:12]} 32. Rb6+ {[%emt 0:02:40]} Kg7 {[%emt 0:00:50]} 33. hxg5 {[%emt 0:02:33]} Rxe2+ {[%emt 0:00:31]} 34. Nxe2 {[%emt 0:00:36]} Rxe2+ {[%emt 0:00:20]} 35. Kg3 {[%emt 0:01:38]} Bd5 {[%emt 0:01:52]} 36. g6 {[%emt 0:01:13]} Re3+ {[%emt 0:01:35]} 37. Kh4 {[%emt 0:00:32]} Rb3 {[%emt 0:00:47]} 38. Rd6 {[%emt 0:01:43]} 1-0

[Event "9th HDBank Open 2019"]
[Site "Ho Chi Minh City"]
[Date "2019.03.07"]
[Round "1.20"]
[White "Stefanova, Antoaneta"]
[Black "Tran, Ngoc Lan"]
[Result "1/2-1/2"]
[ECO "A06"]
[WhiteElo "2493"]
[BlackElo "2250"]
[Annotator "ChessBase"]
[PlyCount "72"]
[EventDate "2019.03.07"]
[EventType "swiss"]
[EventCountry "VIE"]
[SourceTitle "playchess.com"]
[Source "ChessBase"]
[SourceQuality "1"]
[TimeControl "5400+30"]

1. Nf3 {[%emt 0:02:08]} d5 {[%emt 0:00:17]} 2. g3 {[%emt 0:00:08]} c6 {[%emt 0:00:29]} 3. Bg2 {[%emt 0:00:19]} Bg4 {[%emt 0:00:21]} 4. O-O {[%emt 0:06:35]} Nd7 {[%emt 0:00:21]} 5. d3 {[%emt 0:01:56]} e5 {[%emt 0:02:15]} 6. c4 {[%emt 0:05:58]} dxc4 {[%emt 0:09:07]} 7. dxc4 {[%emt 0:00:10]} Ngf6 {[%emt 0:00:14]} 8. h3 {[%emt 0:03:25]} Bh5 {[%emt 0:01:36]} 9. Be3 {[%emt 0:09:33]} Qc7 {[%emt 0:05:01]} 10. Nc3 {[%emt 0:06:23]} Bc5 {[%emt 0:02:40]} 11. Qc1 {[%emt 0:03:29]} O-O {[%emt 0:05:21]} 12. Rd1 {[%emt 0:03:16]} Bxf3 {[%emt 0:03:13]} 13. Bxf3 {[%emt 0:01:59]} Rfe8 {[%emt 0:00:47]} 14. Bg2 {[%emt 0:03:21]} Rad8 {[%emt 0:05:00]} 15. Bxc5 {[%emt 0:02:02]} Nxc5 {[%emt 0:00:04]} 16. Qe3 {[%emt 0:00:56]} Qb6 {[%emt 0:06:54]} 17. b3 {[%emt 0:02:39]} Ncd7 {[%emt 0:02:40]} 18. Qxb6 {[%emt 0:03:35]} Nxb6 {[%emt 0:00:26]} 19. c5 {[%emt 0:01:22]} Nbd5 {[%emt 0:00:35]} 20. Nxd5 {[%emt 0:06:51]} Nxd5 {[%emt 0:02:14]} 21. Rd2 {[%emt 0:02:59]} Nc3 {[%emt 0:01:11]} 22. Rc2 {[%emt 0:06:43]} Nb5 {[%emt 0:01:10]} 23. a4 {[%emt 0:02:15]} Nd4 {[%emt 0:00:16]} 24. Rb2 {[%emt 0:00:05]} a5 {[%emt 0:00:44]} 25. Rc1 {[%emt 0:06:50]} Ne6 {[%emt 0:01:14]} 26. e3 {[%emt 0:04:36]} Rd7 {[%emt 0:01:20]} 27. Kf1 {[%emt 0:01:30]} Red8 {[%emt 0:00:38]} 28. Ke1 {[%emt 0:00:08]} Kf8 {[%emt 0:00:18]} 29. h4 {[%emt 0:02:12]} Ke7 {[%emt 0:00:44]} 30. Bh3 {[%emt 0:04:14]} Rd5 {[%emt 0:00:16]} 31. Bxe6 {[%emt 0:00:11]} Kxe6 {[%emt 0:00:05]} 32. b4 {[%emt 0:00:06]} axb4 {[%emt 0:01:11]} 33. Rxb4 {[%emt 0:00:05]} Rd2 {[%emt 0:08:37]} 34. Rcb1 {[%emt 0:05:30]} Rc2 {[%emt 0:00:35]} 35. R1b2 {[%emt 0:00:07]} Rxc5 {[%emt 0:01:48]} 36. Rxb7 {[%emt 0:00:05]} Ra8 {[%emt 0:00:26]} 1/2-1/2

[Event "9th HDBank Open 2019"]
[Site "Ho Chi Minh City"]
[Date "2019.03.07"]
[Round "1.22"]
[White "Praveen Kumar C"]
[Black "Nguyen, Anh Khoi"]
[Result "1/2-1/2"]
[ECO "A62"]
[WhiteElo "2243"]
[BlackElo "2484"]
[Annotator "ChessBase"]
[PlyCount "69"]
[EventDate "2019.03.07"]
[EventType "swiss"]
[EventCountry "VIE"]
[SourceTitle "playchess.com"]
[Source "ChessBase"]
[SourceQuality "1"]
[TimeControl "5400+30"]

1. d4 {[%emt 0:00:00]} Nf6 {[%emt 0:00:00]} 2. c4 {[%emt 0:00:00]} e6 {[%emt 0:00:00]} 3. g3 {[%emt 0:00:00]} c5 {[%emt 0:00:14]} 4. d5 {[%emt 0:00:10]} exd5 {[%emt 0:00:08]} 5. cxd5 {[%emt 0:00:05]} d6 {[%emt 0:00:13]} 6. Nc3 {[%emt 0:00:07]} g6 {[%emt 0:00:10]} 7. Nf3 {[%emt 0:00:10]} Bg7 {[%emt 0:00:06]} 8. Bg2 {[%emt 0:00:14]} O-O {[%emt 0:00:09]} 9. O-O {[%emt 0:00:10]} a6 {[%emt 0:00:57]} 10. a4 {[%emt 0:00:07]} Nbd7 {[%emt 0:00:22]} 11. Bf4 {[%emt 0:01:54]} Qe7 {[%emt 0:00:09]} 12. Qc1 {[%emt 0:03:19]} Ng4 {[%emt 0:07:06]} 13. h3 {[%emt 0:09:30]} Nge5 {[%emt 0:00:08]} 14. Bh6 {[%emt 0:00:54]} Bxh6 {[%emt 0:13:22]} 15. Qxh6 {[%emt 0:00:10]} f5 {[%emt 0:01:41]} 16. Rae1 {[%emt 0:19:23]} Re8 {[%emt 0:29:32]} 17. e4 {[%emt 0:11:59]} Nxf3+ {[%emt 0:03:59]} 18. Bxf3 {[%emt 0:00:10]} Qf8 {[%emt 0:04:56]} 19. Qxf8+ {[%emt 0:19:23]} Kxf8 {[%emt 0:00:28]} 20. Re3 {[%emt 0:00:24]} Nf6 {[%emt 0:09:10]} 21. exf5 {[%emt 0:03:44]} gxf5 {[%emt 0:02:03]} 22. Rxe8+ {[%emt 0:06:26]} Nxe8 {[%emt 0:00:11]} 23. Rb1 {[%emt 0:04:14]} Bd7 {[%emt 0:01:30]} 24. a5 {[%emt 0:04:17]} Nc7 {[%emt 0:06:16]} 25. b4 {[%emt 0:06:17]} c4 {[%emt 0:07:43]} 26. Be2 {[%emt 0:00:32]} Nb5 {[%emt 0:01:02]} 27. Rc1 {[%emt 0:00:18]} Rc8 {[%emt 0:04:19]} 28. Bf1 {[%emt 0:00:25]} Nxc3 {[%emt 0:03:08]} 29. Rxc3 {[%emt 0:00:06]} Bb5 {[%emt 0:00:03]} 30. f4 {[%emt 0:03:05]} Re8 {[%emt 0:01:59]} 31. Kf2 {[%emt 0:00:08]} Re4 {[%emt 0:00:34]} 32. Be2 {[%emt 0:00:11]} Rd4 {[%emt 0:00:30]} 33. Ke3 {[%emt 0:00:32]} Re4+ {[%emt 0:00:16]} 34. Kf2 {[%emt 0:00:11]} Rd4 {[%emt 0:00:05]} 35. Ke3 {[%emt 0:00:05]} 1/2-1/2

[Event "9th HDBank Open 2019"]
[Site "Ho Chi Minh City"]
[Date "2019.03.07"]
[Round "1.23"]
[White "Vignesh N R"]
[Black "Nandhidhaa, P V"]
[Result "0-1"]
[ECO "B48"]
[WhiteElo "2476"]
[BlackElo "2240"]
[Annotator "ChessBase"]
[PlyCount "75"]
[EventDate "2019.03.07"]
[EventType "swiss"]
[EventCountry "VIE"]
[SourceTitle "playchess.com"]
[Source "ChessBase"]
[SourceQuality "1"]
[TimeControl "5400+30"]

1. e4 {[%emt 0:00:00]} c5 {[%emt 0:00:35]} 2. Nf3 {[%emt 0:00:01]} e6 {[%emt 0:00:04]} 3. d4 {[%emt 0:00:24]} cxd4 {[%emt 0:00:04]} 4. Nxd4 {[%emt 0:00:04]} Nc6 {[%emt 0:00:04]} 5. Nc3 {[%emt 0:02:25]} Qc7 {[%emt 0:00:06]} 6. Be3 {[%emt 0:00:05]} a6 {[%emt 0:00:04]} 7. Qf3 {[%emt 0:00:19]} Nf6 {[%emt 0:01:27]} 8. O-O-O {[%emt 0:00:04]} Ne5 {[%emt 0:02:44]} 9. Qg3 {[%emt 0:00:03]} b5 {[%emt 0:00:14]} 10. a3 {[%emt 0:04:43]} Bb7 {[%emt 0:06:01]} 11. Bxb5 {[%emt 0:02:07]} Rc8 {[%emt 0:00:33]} 12. Ba4 {[%emt 0:03:02]} Nxe4 {[%emt 0:00:52]} 13. Nxe4 {[%emt 0:00:06]} Bxe4 {[%emt 0:00:04]} 14. Bf4 {[%emt 0:01:59]} Qc4 {[%emt 0:01:19]} 15. Bxe5 {[%emt 0:02:00]} Qxa4 {[%emt 0:00:37]} 16. Rd2 {[%emt 0:00:22]} f6 {[%emt 0:00:34]} 17. Bd6 {[%emt 0:00:31]} Kf7 {[%emt 0:00:56]} 18. Re1 {[%emt 0:06:35]} Bg6 {[%emt 0:00:47]} 19. Bxf8 {[%emt 0:05:00]} Rhxf8 {[%emt 0:00:29]} 20. Qd6 {[%emt 0:00:44]} Kg8 {[%emt 0:00:53]} 21. f4 {[%emt 0:01:44]} Qc4 {[%emt 0:04:47]} 22. Qxd7 {[%emt 0:24:23]} Bf7 {[%emt 0:05:16]} 23. Nxe6 {[%emt 0:06:05]} Rfe8 {[%emt 0:04:52]} 24. f5 {[%emt 0:03:13]} Qa2 {[%emt 0:02:39]} 25. Rd3 {[%emt 0:03:14]} Qa1+ {[%emt 0:12:21]} 26. Kd2 {[%emt 0:00:04]} Qxb2 {[%emt 0:00:16]} 27. Nc7 {[%emt 0:02:43]} Rf8 {[%emt 0:07:10]} 28. Re7 {[%emt 0:01:09]} Qb6 {[%emt 0:04:58]} 29. Ke2 {[%emt 0:19:44]} Qg1 {[%emt 0:12:36]} 30. Rxf7 {[%emt 0:05:28]} Qxg2+ {[%emt 0:00:32]} 31. Ke3 {[%emt 0:00:06]} Qg1+ {[%emt 0:03:09]} 32. Ke4 {[%emt 0:03:51]} Qg4+ {[%emt 0:02:53]} 33. Ke3 {[%emt 0:00:27]} Qg1+ {[%emt 0:00:35]} 34. Kf3 {[%emt 0:01:18]} Qf1+ {[%emt 0:03:48]} 35. Kg4 {[%emt 0:01:28]} Qe2+ {[%emt 0:02:41]} 36. Kg3 {[%emt 0:01:01]} Qe1+ {[%emt 0:01:19]} 37. Kg4 {[%emt 0:00:43]} Qe2+ {[%emt 0:00:09]} 38. Rf3 {[%emt 0:00:16]} 0-1